[Event "Titled Tuesday Blitz July 13 2021"]
[White "Novoselski, Zoran"]
[Black "Stoyanov, Tsvetan"]
[WhiteFideId "901970"]
[BlackFideId "2917173"]
[WhiteElo "2327"]
[BlackElo "2198"]
[Result "0-1"]
[Round "08"]
[TimeControl "180+1"]
[Date "2021.07.13"]
[WhiteClock "0:00:01"]
[BlackClock "0:00:12"]

1. e4 {[%clk 0:03:00]}  c5 {[%clk 0:02:59]} 2. Nf3 {[%clk 0:02:59]}  d6 {[%clk 0:03:00]} 3. Bb5+ {[%clk 0:02:58]}  Nd7 {[%clk 0:02:59]} 4. c3 {[%clk 0:02:58]}  a6 {[%clk 0:02:59]} 5. Ba4 {[%clk 0:02:58]}  b5 {[%clk 0:03:00]} 6. Bc2 {[%clk 0:02:57]}  Bb7 {[%clk 0:03:00]} 7. O-O {[%clk 0:02:56]}  g6 {[%clk 0:03:00]} 8. d4 {[%clk 0:02:54]}  Bg7 {[%clk 0:03:00]} 9. Re1 {[%clk 0:02:52]}  Qc7 {[%clk 0:02:56]} 10. a4 {[%clk 0:02:48]}  e5 {[%clk 0:02:45]} 11. axb5 {[%clk 0:02:45]}  axb5 {[%clk 0:02:43]} 12. Rxa8+ {[%clk 0:02:43]}  Bxa8 {[%clk 0:02:44]} 13. Na3 {[%clk 0:02:42]}  Qb6 {[%clk 0:02:27]} 14. dxc5 {[%clk 0:02:36]}  dxc5 {[%clk 0:02:19]} 15. b4 {[%clk 0:02:32]}  cxb4 {[%clk 0:02:12]} 16. cxb4 {[%clk 0:02:31]}  Bc6 {[%clk 0:02:12]} 17. Bb2 {[%clk 0:02:18]}  Ne7 {[%clk 0:01:56]} 18. Qd6 {[%clk 0:01:56]}  Nc8 {[%clk 0:01:56]} 19. Qd2 {[%clk 0:01:54]}  O-O {[%clk 0:01:55]} 20. Bb3 {[%clk 0:01:47]}  Qb7 {[%clk 0:01:46]} 21. Ng5 {[%clk 0:01:31]}  h6 {[%clk 0:01:41]} 22. Nxf7 {[%clk 0:01:29]}  Rxf7 {[%clk 0:01:42]} 23. Qd3 {[%clk 0:01:17]}  Kf8 {[%clk 0:01:34]} 24. Bxf7 {[%clk 0:01:15]}  Kxf7 {[%clk 0:01:34]} 25. Qb3+ {[%clk 0:01:11]}  Kf8 {[%clk 0:01:34]} 26. Qe6 {[%clk 0:01:06]}  Ne7 {[%clk 0:01:31]} 27. Rd1 {[%clk 0:01:00]}  Qc8 {[%clk 0:01:18]} 28. f4 {[%clk 0:00:50]}  Qc7 {[%clk 0:00:56]} 29. f5 {[%clk 0:00:45]}  gxf5 {[%clk 0:00:53]} 30. exf5 {[%clk 0:00:44]}  Qb6+ {[%clk 0:00:51]} 31. Kh1 {[%clk 0:00:43]}  Qf2 {[%clk 0:00:49]} 32. Rg1 {[%clk 0:00:30]}  Qxb2 {[%clk 0:00:49]} 33. Nb1 {[%clk 0:00:25]}  Bxg2+ {[%clk 0:00:39]} 34. Rxg2 {[%clk 0:00:24]}  Qxb1+ {[%clk 0:00:40]} 35. Rg1 {[%clk 0:00:24]}  Qe4+ {[%clk 0:00:41]} 36. Rg2 {[%clk 0:00:25]}  Nf6 {[%clk 0:00:39]} 37. h3 {[%clk 0:00:21]}  Nxf5 {[%clk 0:00:36]} 38. Qc8+ {[%clk 0:00:20]}  Kf7 {[%clk 0:00:36]} 39. Qc7+ {[%clk 0:00:19]}  Ne7 {[%clk 0:00:32]} 40. Kh2 {[%clk 0:00:16]}  Qf4+ {[%clk 0:00:32]} 41. Kh1 {[%clk 0:00:15]}  Nd5 {[%clk 0:00:33]} 42. Qc2 {[%clk 0:00:13]}  Ne3 {[%clk 0:00:26]} 43. Qa2+ {[%clk 0:00:11]}  Qc4 {[%clk 0:00:19]} 44. Rf2+ {[%clk 0:00:11]}  Ke6 {[%clk 0:00:19]} 45. Qb1 {[%clk 0:00:09]}  N7f5 {[%clk 0:00:15]} 46. Ra2 {[%clk 0:00:07]}  Qd5+ {[%clk 0:00:15]} 47. Kh2 {[%clk 0:00:06]}  e4 {[%clk 0:00:15]} 48. Ra7 {[%clk 0:00:06]}  Be5+ {[%clk 0:00:14]} 49. Kg1 {[%clk 0:00:04]}  Qd2 {[%clk 0:00:13]} 50. Qb3+ {[%clk 0:00:01]}  Nc4 {[%clk 0:00:12]} 0-1


[Site "https://www.chess.com"]

[Event "Titled Tuesday Blitz July 13 2021"]
[White "Obolentseva, Alexandra"]
[Black "Cornette, Matthieu"]
[WhiteFideId "24153648"]
[BlackFideId "620084"]
[WhiteElo "2113"]
[BlackElo "2500"]
[Result "1-0"]
[Round "08"]
[TimeControl "180+1"]
[Date "2021.07.13"]
[WhiteClock "0:00:29"]
[BlackClock "0:00:05"]

1. d4 {[%clk 0:02:56]}  Nf6 {[%clk 0:02:58]} 2. c4 {[%clk 0:02:55]}  b6 {[%clk 0:02:59]} 3. Nc3 {[%clk 0:02:54]}  Bb7 {[%clk 0:02:59]} 4. Qc2 {[%clk 0:02:52]}  d5 {[%clk 0:02:55]} 5. cxd5 {[%clk 0:02:51]}  Nxd5 {[%clk 0:02:55]} 6. e4 {[%clk 0:02:51]}  Nxc3 {[%clk 0:02:55]} 7. bxc3 {[%clk 0:02:52]}  e5 {[%clk 0:02:55]} 8. Nf3 {[%clk 0:02:45]}  exd4 {[%clk 0:02:54]} 9. cxd4 {[%clk 0:02:46]}  Bb4+ {[%clk 0:02:50]} 10. Bd2 {[%clk 0:02:44]}  Bxd2+ {[%clk 0:02:50]} 11. Kxd2 {[%clk 0:02:27]}  O-O {[%clk 0:02:49]} 12. Bd3 {[%clk 0:02:25]}  c5 {[%clk 0:02:44]} 13. d5 {[%clk 0:02:24]}  Nd7 {[%clk 0:02:41]} 14. Rhe1 {[%clk 0:02:21]}  Rc8 {[%clk 0:02:37]} 15. Bb5 {[%clk 0:02:18]}  Nf6 {[%clk 0:02:33]} 16. Ke2 {[%clk 0:02:10]}  c4 {[%clk 0:02:24]} 17. Nd4 {[%clk 0:01:57]}  Nxd5 {[%clk 0:02:04]} 18. exd5 {[%clk 0:01:46]}  Qxd5 {[%clk 0:02:03]} 19. Qc3 {[%clk 0:01:14]}  a6 {[%clk 0:01:33]} 20. Ba4 {[%clk 0:01:11]}  b5 {[%clk 0:01:33]} 21. Bc2 {[%clk 0:01:09]}  b4 {[%clk 0:01:18]} 22. Qh3 {[%clk 0:01:05]}  g6 {[%clk 0:00:58]} 23. Nf3 {[%clk 0:01:02]}  b3 {[%clk 0:00:52]} 24. Rad1 {[%clk 0:00:52]}  Rfe8+ {[%clk 0:00:22]} 25. Kf1 {[%clk 0:00:51]}  Rxe1+ {[%clk 0:00:22]} 26. Nxe1 {[%clk 0:00:52]}  bxc2 {[%clk 0:00:20]} 27. Rxd5 {[%clk 0:00:47]}  c1=Q {[%clk 0:00:20]} 28. Rd7 {[%clk 0:00:44]}  Be4 {[%clk 0:00:18]} 29. Rd4 {[%clk 0:00:39]}  Re8 {[%clk 0:00:16]} 30. Qd7 {[%clk 0:00:33]}  Bc6 {[%clk 0:00:11]} 31. Rd1 {[%clk 0:00:29]}  Qc2 {[%clk 0:00:06]} 32. Nxc2 {[%clk 0:00:28]}  Bxd7 {[%clk 0:00:05]} 33. Rxd7 {[%clk 0:00:29]} 1-0


[Site "https://www.chess.com"]

[Event "Titled Tuesday Blitz July 13 2021"]
[White "Ogloblin, Nikolay"]
[Black "Pourkashiyan, Atousa"]
[WhiteFideId "4139658"]
[BlackFideId "12502014"]
[WhiteElo "2244"]
[BlackElo "2285"]
[Result "0-1"]
[Round "08"]
[TimeControl "180+1"]
[Date "2021.07.13"]
[WhiteClock "0:01:28"]
[BlackClock "0:00:18"]

1. d4 {[%clk 0:03:00]}  Nf6 {[%clk 0:02:59]} 2. Nf3 {[%clk 0:03:01]}  e6 {[%clk 0:02:59]} 3. e3 {[%clk 0:03:01]}  Be7 {[%clk 0:02:59]} 4. Bd3 {[%clk 0:03:02]}  O-O {[%clk 0:02:59]} 5. O-O {[%clk 0:03:02]}  b6 {[%clk 0:02:59]} 6. c4 {[%clk 0:03:02]}  Bb7 {[%clk 0:02:59]} 7. Nc3 {[%clk 0:03:02]}  c5 {[%clk 0:03:00]} 8. d5 {[%clk 0:03:01]}  exd5 {[%clk 0:02:57]} 9. cxd5 {[%clk 0:03:01]}  d6 {[%clk 0:02:57]} 10. e4 {[%clk 0:03:01]}  Nbd7 {[%clk 0:02:58]} 11. h3 {[%clk 0:03:00]}  a6 {[%clk 0:02:55]} 12. a4 {[%clk 0:03:00]}  Re8 {[%clk 0:02:54]} 13. Bf4 {[%clk 0:03:00]}  Bf8 {[%clk 0:02:54]} 14. Re1 {[%clk 0:03:00]}  g6 {[%clk 0:02:54]} 15. Bh2 {[%clk 0:02:54]}  Rc8 {[%clk 0:02:38]} 16. Nd2 {[%clk 0:02:53]}  Ne5 {[%clk 0:02:34]} 17. Bf1 {[%clk 0:02:52]}  c4 {[%clk 0:02:25]} 18. Bxe5 {[%clk 0:02:50]}  Rxe5 {[%clk 0:02:25]} 19. Nxc4 {[%clk 0:02:50]}  Re8 {[%clk 0:02:23]} 20. Nd2 {[%clk 0:02:48]}  Nd7 {[%clk 0:02:17]} 21. Rc1 {[%clk 0:02:42]}  Bg7 {[%clk 0:02:16]} 22. Qf3 {[%clk 0:02:38]}  Nc5 {[%clk 0:02:08]} 23. b4 {[%clk 0:02:33]}  Nd7 {[%clk 0:02:06]} 24. Nc4 {[%clk 0:02:33]}  Ne5 {[%clk 0:01:53]} 25. Nxe5 {[%clk 0:02:33]}  Bxe5 {[%clk 0:01:54]} 26. Qe3 {[%clk 0:02:33]}  Bxc3 {[%clk 0:01:43]} 27. Rxc3 {[%clk 0:02:32]}  Bxd5 {[%clk 0:01:43]} 28. Rxc8 {[%clk 0:02:30]}  Qxc8 {[%clk 0:01:43]} 29. Qxb6 {[%clk 0:02:30]}  Bxe4 {[%clk 0:01:17]} 30. Qxa6 {[%clk 0:02:26]}  Qc3 {[%clk 0:01:09]} 31. Qb5 {[%clk 0:02:07]}  Qxe1 {[%clk 0:00:38]} 32. Qxe8+ {[%clk 0:02:06]}  Kg7 {[%clk 0:00:39]} 33. b5 {[%clk 0:02:06]}  Qb1 {[%clk 0:00:38]} 34. a5 {[%clk 0:02:01]}  Bd3 {[%clk 0:00:38]} 35. b6 {[%clk 0:01:47]}  Qxf1+ {[%clk 0:00:38]} 36. Kh2 {[%clk 0:01:47]}  Ba6 {[%clk 0:00:32]} 37. Qe3 {[%clk 0:01:41]}  Qb5 {[%clk 0:00:30]} 38. Qc3+ {[%clk 0:01:39]}  Qe5+ {[%clk 0:00:28]} 39. Qxe5+ {[%clk 0:01:38]}  dxe5 {[%clk 0:00:29]} 40. Kg3 {[%clk 0:01:39]}  f5 {[%clk 0:00:30]} 41. f4 {[%clk 0:01:39]}  e4 {[%clk 0:00:29]} 42. Kf2 {[%clk 0:01:39]}  Kf6 {[%clk 0:00:29]} 43. Ke3 {[%clk 0:01:39]}  Ke6 {[%clk 0:00:30]} 44. g4 {[%clk 0:01:39]}  Kd6 {[%clk 0:00:29]} 45. Kd4 {[%clk 0:01:39]}  Kc6 {[%clk 0:00:27]} 46. g5 {[%clk 0:01:39]}  Kb5 {[%clk 0:00:25]} 47. h4 {[%clk 0:01:33]}  Kxa5 {[%clk 0:00:25]} 48. Ke5 {[%clk 0:01:29]}  e3 {[%clk 0:00:24]} 49. Kf6 {[%clk 0:01:29]}  e2 {[%clk 0:00:25]} 50. Kg7 {[%clk 0:01:30]}  e1=Q {[%clk 0:00:25]} 51. Kxh7 {[%clk 0:01:31]}  Qe6 {[%clk 0:00:19]} 52. h5 {[%clk 0:01:28]}  gxh5 {[%clk 0:00:19]} 53. g6 {[%clk 0:01:28]}  Bc4 {[%clk 0:00:18]} 54. g7 {[%clk 0:01:28]}  Qg8+ {[%clk 0:00:17]} 55. Kg6 {[%clk 0:01:29]}  h4 {[%clk 0:00:17]} 56. b7 {[%clk 0:01:28]}  h3 {[%clk 0:00:17]} 57. Kxf5 {[%clk 0:01:29]}  h2 {[%clk 0:00:17]} 58. Ke5 {[%clk 0:01:29]}  Qxg7+ {[%clk 0:00:17]} 59. Kd6 {[%clk 0:01:28]}  Qxb7 {[%clk 0:00:17]} 60. f5 {[%clk 0:01:29]}  h1=Q {[%clk 0:00:18]} 61. f6 {[%clk 0:01:28]}  Qhd5# {[%clk 0:00:18]} 0-1


[Site "https://www.chess.com"]

[Event "Titled Tuesday Blitz July 13 2021"]
[White "Ozates, Tuna"]
[Black "Plotnikov, Pavel"]
[WhiteFideId "6354521"]
[BlackFideId "4170342"]
[WhiteElo "1872"]
[BlackElo "2298"]
[Result "1-0"]
[Round "08"]
[TimeControl "180+1"]
[Date "2021.07.13"]
[WhiteClock "0:01:24"]
[BlackClock "0:00:14"]

1. d4 {[%clk 0:03:00]}  Nf6 {[%clk 0:02:59]} 2. Bg5 {[%clk 0:03:01]}  Ne4 {[%clk 0:02:57]} 3. Bf4 {[%clk 0:03:01]}  d5 {[%clk 0:02:57]} 4. e3 {[%clk 0:03:00]}  e6 {[%clk 0:02:46]} 5. Bd3 {[%clk 0:02:59]}  c5 {[%clk 0:02:45]} 6. Nf3 {[%clk 0:02:54]}  Nc6 {[%clk 0:02:44]} 7. O-O {[%clk 0:02:51]}  Be7 {[%clk 0:02:42]} 8. c4 {[%clk 0:02:50]}  O-O {[%clk 0:02:37]} 9. cxd5 {[%clk 0:02:49]}  exd5 {[%clk 0:02:37]} 10. Nc3 {[%clk 0:02:50]}  Nxc3 {[%clk 0:02:33]} 11. bxc3 {[%clk 0:02:49]}  c4 {[%clk 0:02:30]} 12. Bc2 {[%clk 0:02:45]}  Bg4 {[%clk 0:02:28]} 13. e4 {[%clk 0:02:41]}  dxe4 {[%clk 0:02:15]} 14. Bxe4 {[%clk 0:02:37]}  Qd7 {[%clk 0:02:15]} 15. d5 {[%clk 0:02:23]}  Na5 {[%clk 0:02:04]} 16. Ne5 {[%clk 0:02:22]}  Bxd1 {[%clk 0:02:01]} 17. Nxd7 {[%clk 0:02:22]}  Rfd8 {[%clk 0:01:59]} 18. Rfxd1 {[%clk 0:02:11]}  Rxd7 {[%clk 0:01:58]} 19. Bf5 {[%clk 0:02:12]}  Rd6 {[%clk 0:01:52]} 20. Bxd6 {[%clk 0:02:10]}  Bxd6 {[%clk 0:01:52]} 21. Re1 {[%clk 0:01:58]}  g6 {[%clk 0:01:50]} 22. Bd7 {[%clk 0:01:56]}  Rd8 {[%clk 0:01:46]} 23. Re8+ {[%clk 0:01:56]}  Rxe8 {[%clk 0:01:46]} 24. Bxe8 {[%clk 0:01:57]}  Kf8 {[%clk 0:01:46]} 25. Re1 {[%clk 0:01:54]}  Be7 {[%clk 0:01:13]} 26. Bd7 {[%clk 0:01:47]}  a6 {[%clk 0:01:08]} 27. a4 {[%clk 0:01:42]}  Nb3 {[%clk 0:01:02]} 28. Bc8 {[%clk 0:01:39]}  Nc5 {[%clk 0:01:01]} 29. a5 {[%clk 0:01:36]}  Bd6 {[%clk 0:00:58]} 30. Rb1 {[%clk 0:01:33]}  Ke7 {[%clk 0:00:45]} 31. Bxb7 {[%clk 0:01:32]}  Bc7 {[%clk 0:00:43]} 32. Bc8 {[%clk 0:01:21]}  Bxa5 {[%clk 0:00:40]} 33. Bxa6 {[%clk 0:01:18]}  Nxa6 {[%clk 0:00:29]} 34. Ra1 {[%clk 0:01:17]}  Bxc3 {[%clk 0:00:27]} 35. Rxa6 {[%clk 0:01:16]}  Bd2 {[%clk 0:00:14]} 36. Rc6 {[%clk 0:01:16]}  c3 {[%clk 0:00:07]} 37. Kf1 {[%clk 0:01:16]}  Kd7 {[%clk 0:00:07]} 38. Ke2 {[%clk 0:01:16]}  Ke7 {[%clk 0:00:05]} 39. Kd3 {[%clk 0:01:15]}  Be1 {[%clk 0:00:05]} 40. f4 {[%clk 0:01:13]}  Bd2 {[%clk 0:00:04]} 41. g3 {[%clk 0:01:14]}  Kd7 {[%clk 0:00:03]} 42. Rxc3 {[%clk 0:01:13]}  Bxc3 {[%clk 0:00:02]} 43. Kxc3 {[%clk 0:01:14]}  Kd6 {[%clk 0:00:03]} 44. Kd4 {[%clk 0:01:14]}  f6 {[%clk 0:00:03]} 45. Kc4 {[%clk 0:01:12]}  f5 {[%clk 0:00:03]} 46. Kd4 {[%clk 0:01:12]}  h6 {[%clk 0:00:03]} 47. h4 {[%clk 0:01:12]}  h5 {[%clk 0:00:02]} 48. Kc4 {[%clk 0:01:12]}  Kd7 {[%clk 0:00:03]} 49. Kc5 {[%clk 0:01:12]}  Kc7 {[%clk 0:00:02]} 50. d6+ {[%clk 0:01:12]}  Kd7 {[%clk 0:00:03]} 51. Kd5 {[%clk 0:01:13]}  Kd8 {[%clk 0:00:03]} 52. Ke6 {[%clk 0:01:13]}  Ke8 {[%clk 0:00:04]} 53. Kf6 {[%clk 0:01:14]}  Kd7 {[%clk 0:00:04]} 54. Kxg6 {[%clk 0:01:14]}  Kxd6 {[%clk 0:00:05]} 55. Kxf5 {[%clk 0:01:15]}  Kd5 {[%clk 0:00:06]} 56. Kg5 {[%clk 0:01:16]}  Kd4 {[%clk 0:00:06]} 57. Kxh5 {[%clk 0:01:17]}  Ke3 {[%clk 0:00:07]} 58. Kg4 {[%clk 0:01:18]}  Kd3 {[%clk 0:00:08]} 59. h5 {[%clk 0:01:19]}  Ke3 {[%clk 0:00:09]} 60. h6 {[%clk 0:01:19]}  Kd3 {[%clk 0:00:09]} 61. h7 {[%clk 0:01:20]}  Ke3 {[%clk 0:00:10]} 62. h8=Q {[%clk 0:01:21]}  Kd3 {[%clk 0:00:11]} 63. Qe5 {[%clk 0:01:21]}  Kc2 {[%clk 0:00:11]} 64. f5 {[%clk 0:01:22]}  Kb1 {[%clk 0:00:12]} 65. f6 {[%clk 0:01:23]}  Ka2 {[%clk 0:00:12]} 66. f7 {[%clk 0:01:24]}  Kb1 {[%clk 0:00:13]} 67. f8=Q {[%clk 0:01:25]}  Ka2 {[%clk 0:00:14]} 68. Qb5 {[%clk 0:01:24]}  Ka1 {[%clk 0:00:14]} 69. Qa8# {[%clk 0:01:24]} 1-0


[Site "https://www.chess.com"]

[Event "Titled Tuesday Blitz July 13 2021"]
[White "Pastar, Slaven"]
[Black "Viskelis, Darius"]
[WhiteFideId "14402718"]
[BlackFideId "12800830"]
[WhiteElo "2150"]
[BlackElo "2006"]
[Result "1-0"]
[Round "08"]
[TimeControl "180+1"]
[Date "2021.07.13"]
[WhiteClock "0:00:03"]
[BlackClock "0:00:01"]

1. b3 {[%clk 0:02:49]}  b6 {[%clk 0:02:57]} 2. Bb2 {[%clk 0:02:50]}  Bb7 {[%clk 0:02:57]} 3. Nf3 {[%clk 0:02:47]}  Nf6 {[%clk 0:02:57]} 4. g3 {[%clk 0:02:47]}  e6 {[%clk 0:02:58]} 5. Bg2 {[%clk 0:02:47]}  Be7 {[%clk 0:02:58]} 6. O-O {[%clk 0:02:47]}  O-O {[%clk 0:02:58]} 7. c4 {[%clk 0:02:47]}  d6 {[%clk 0:02:58]} 8. Qc2 {[%clk 0:02:47]}  Nbd7 {[%clk 0:02:58]} 9. d4 {[%clk 0:02:38]}  Ne4 {[%clk 0:02:56]} 10. Nbd2 {[%clk 0:02:35]}  f5 {[%clk 0:02:56]} 11. Rac1 {[%clk 0:02:26]}  Ndf6 {[%clk 0:02:48]} 12. Nxe4 {[%clk 0:02:21]}  Nxe4 {[%clk 0:02:43]} 13. d5 {[%clk 0:02:17]}  Bf6 {[%clk 0:02:15]} 14. Nd4 {[%clk 0:02:07]}  Bxd4 {[%clk 0:02:08]} 15. Bxd4 {[%clk 0:02:08]}  e5 {[%clk 0:02:09]} 16. Bxe4 {[%clk 0:02:02]}  fxe4 {[%clk 0:01:31]} 17. Be3 {[%clk 0:02:02]}  c6 {[%clk 0:01:23]} 18. Qxe4 {[%clk 0:01:59]}  cxd5 {[%clk 0:01:23]} 19. cxd5 {[%clk 0:02:00]}  Rc8 {[%clk 0:01:17]} 20. b4 {[%clk 0:01:53]}  Qf6 {[%clk 0:01:04]} 21. b5 {[%clk 0:01:49]}  Qf7 {[%clk 0:00:57]} 22. Rc6 {[%clk 0:01:43]}  Bxc6 {[%clk 0:00:51]} 23. bxc6 {[%clk 0:01:44]}  Qf5 {[%clk 0:00:44]} 24. Qa4 {[%clk 0:01:21]}  Rc7 {[%clk 0:00:43]} 25. Bc1 {[%clk 0:01:01]}  e4 {[%clk 0:00:39]} 26. Qd4 {[%clk 0:00:56]}  Re8 {[%clk 0:00:30]} 27. Bf4 {[%clk 0:00:46]}  Rcc8 {[%clk 0:00:19]} 28. Rc1 {[%clk 0:00:32]}  g5 {[%clk 0:00:19]} 29. Be3 {[%clk 0:00:16]}  Re5 {[%clk 0:00:18]} 30. Rd1 {[%clk 0:00:16]}  Rf8 {[%clk 0:00:15]} 31. Qb4 {[%clk 0:00:15]}  Rf6 {[%clk 0:00:11]} 32. c7 {[%clk 0:00:14]}  Qc8 {[%clk 0:00:10]} 33. Bd4 {[%clk 0:00:10]}  Rf7 {[%clk 0:00:08]} 34. Bxe5 {[%clk 0:00:09]}  dxe5 {[%clk 0:00:07]} 35. d6 {[%clk 0:00:09]}  Qf5 {[%clk 0:00:06]} 36. Rf1 {[%clk 0:00:04]}  e3 {[%clk 0:00:06]} 37. f3 {[%clk 0:00:04]}  Qd7 {[%clk 0:00:04]} 38. Rc1 {[%clk 0:00:02]}  Rf8 {[%clk 0:00:04]} 39. Qc4+ {[%clk 0:00:02]}  Kg7 {[%clk 0:00:04]} 40. c8=Q {[%clk 0:00:03]}  Rxc8 {[%clk 0:00:03]} 41. Qxc8 {[%clk 0:00:04]}  Qb5 {[%clk 0:00:01]} 42. Rc7+ {[%clk 0:00:02]}  Kh6 {[%clk 0:00:01]} 43. Qe6+ {[%clk 0:00:02]}  Kh5 {[%clk 0:00:01]} 44. Rxh7# {[%clk 0:00:03]} 1-0


[Site "https://www.chess.com"]

[Event "Titled Tuesday Blitz July 13 2021"]
[White "Piesik, Piotr"]
[Black "Zong, Davis"]
[WhiteFideId "1136194"]
[BlackFideId "30903955"]
[WhiteElo "2354"]
[BlackElo "2401"]
[Result "1-0"]
[Round "08"]
[TimeControl "180+1"]
[Date "2021.07.13"]
[WhiteClock "0:01:49"]
[BlackClock "0:00:09"]

1. Nf3 {[%clk 0:03:00]}  Nf6 {[%clk 0:02:59]} 2. g3 {[%clk 0:03:01]}  d5 {[%clk 0:03:00]} 3. Bg2 {[%clk 0:03:01]}  c6 {[%clk 0:03:00]} 4. O-O {[%clk 0:03:01]}  Bg4 {[%clk 0:03:00]} 5. d3 {[%clk 0:03:01]}  Nbd7 {[%clk 0:03:00]} 6. Nbd2 {[%clk 0:03:01]}  e5 {[%clk 0:02:59]} 7. e4 {[%clk 0:03:01]}  dxe4 {[%clk 0:02:59]} 8. dxe4 {[%clk 0:03:02]}  Bc5 {[%clk 0:02:59]} 9. h3 {[%clk 0:03:02]}  Bh5 {[%clk 0:02:59]} 10. Qe1 {[%clk 0:03:02]}  O-O {[%clk 0:02:59]} 11. Nh4 {[%clk 0:03:02]}  a5 {[%clk 0:02:42]} 12. a4 {[%clk 0:03:00]}  Qc7 {[%clk 0:02:36]} 13. Nf5 {[%clk 0:02:57]}  Rad8 {[%clk 0:02:35]} 14. Nc4 {[%clk 0:02:55]}  b6 {[%clk 0:02:28]} 15. g4 {[%clk 0:02:51]}  Bg6 {[%clk 0:02:27]} 16. Ng3 {[%clk 0:02:51]}  Nb8 {[%clk 0:02:04]} 17. Qe2 {[%clk 0:02:49]}  b5 {[%clk 0:02:01]} 18. axb5 {[%clk 0:02:48]}  cxb5 {[%clk 0:02:01]} 19. Nxa5 {[%clk 0:02:48]}  b4 {[%clk 0:01:49]} 20. h4 {[%clk 0:02:46]}  h6 {[%clk 0:01:44]} 21. h5 {[%clk 0:02:46]}  Bh7 {[%clk 0:01:44]} 22. g5 {[%clk 0:02:46]}  hxg5 {[%clk 0:01:42]} 23. Bxg5 {[%clk 0:02:47]}  Qb6 {[%clk 0:01:32]} 24. Nc4 {[%clk 0:02:44]}  Qe6 {[%clk 0:01:31]} 25. Ra5 {[%clk 0:02:35]}  Bd4 {[%clk 0:01:28]} 26. b3 {[%clk 0:02:22]}  Nc6 {[%clk 0:01:17]} 27. Ra6 {[%clk 0:02:21]}  Ra8 {[%clk 0:01:17]} 28. Rxa8 {[%clk 0:02:19]}  Rxa8 {[%clk 0:01:18]} 29. Nf5 {[%clk 0:02:11]}  Rc8 {[%clk 0:01:08]} 30. Bh3 {[%clk 0:02:07]}  Kh8 {[%clk 0:00:21]} 31. Kg2 {[%clk 0:01:52]}  Bxf5 {[%clk 0:00:12]} 32. Bxf5 {[%clk 0:01:51]}  Qe8 {[%clk 0:00:12]} 33. Nd6 {[%clk 0:01:49]}  Qd8 {[%clk 0:00:09]} 34. Nxf7+ {[%clk 0:01:48]}  Kg8 {[%clk 0:00:09]} 35. Nxd8 {[%clk 0:01:49]} 1-0


[Site "https://www.chess.com"]

[Event "Titled Tuesday Blitz July 13 2021"]
[White "Rosenberg, Evan S"]
[Black "Gracia Alvarez, Gerardo Antonio"]
[WhiteFideId "2019299"]
[BlackFideId "5109124"]
[WhiteElo "2373"]
[BlackElo "2148"]
[Result "0-1"]
[Round "08"]
[TimeControl "180+1"]
[Date "2021.07.13"]
[WhiteClock "0:00:14"]
[BlackClock "0:00:06"]

1. Nf3 {[%clk 0:03:00]}  c5 {[%clk 0:03:00]} 2. e4 {[%clk 0:03:00]}  Nc6 {[%clk 0:02:59]} 3. Bb5 {[%clk 0:03:00]}  g6 {[%clk 0:02:59]} 4. Bxc6 {[%clk 0:02:59]}  dxc6 {[%clk 0:03:00]} 5. h3 {[%clk 0:02:58]}  Bg7 {[%clk 0:03:00]} 6. O-O {[%clk 0:02:56]}  Nf6 {[%clk 0:03:01]} 7. Qe2 {[%clk 0:02:53]}  Nd7 {[%clk 0:02:55]} 8. e5 {[%clk 0:02:44]}  Nf8 {[%clk 0:02:53]} 9. a4 {[%clk 0:02:17]}  Ne6 {[%clk 0:02:53]} 10. d3 {[%clk 0:02:04]}  O-O {[%clk 0:02:53]} 11. a5 {[%clk 0:02:03]}  Nd4 {[%clk 0:02:46]} 12. Nxd4 {[%clk 0:02:02]}  Qxd4 {[%clk 0:02:26]} 13. Re1 {[%clk 0:01:57]}  Be6 {[%clk 0:02:26]} 14. Nd2 {[%clk 0:01:24]}  b6 {[%clk 0:02:24]} 15. Nf3 {[%clk 0:01:07]}  Qd7 {[%clk 0:02:19]} 16. axb6 {[%clk 0:00:49]}  axb6 {[%clk 0:02:18]} 17. Rxa8 {[%clk 0:00:50]}  Rxa8 {[%clk 0:02:19]} 18. b3 {[%clk 0:00:48]}  h6 {[%clk 0:02:15]} 19. Bd2 {[%clk 0:00:37]}  Ra2 {[%clk 0:02:11]} 20. Rc1 {[%clk 0:00:32]}  Bd5 {[%clk 0:02:05]} 21. Ne1 {[%clk 0:00:29]}  g5 {[%clk 0:01:47]} 22. Qe3 {[%clk 0:00:23]}  Qf5 {[%clk 0:01:42]} 23. Bc3 {[%clk 0:00:21]}  Qf4 {[%clk 0:01:22]} 24. Qxf4 {[%clk 0:00:20]}  gxf4 {[%clk 0:01:23]} 25. Ra1 {[%clk 0:00:20]}  Rxa1 {[%clk 0:01:22]} 26. Bxa1 {[%clk 0:00:21]}  Kh7 {[%clk 0:01:22]} 27. c4 {[%clk 0:00:20]}  Be6 {[%clk 0:01:21]} 28. f3 {[%clk 0:00:18]}  Kg6 {[%clk 0:01:15]} 29. d4 {[%clk 0:00:17]}  cxd4 {[%clk 0:01:15]} 30. Nd3 {[%clk 0:00:17]}  Kf5 {[%clk 0:01:06]} 31. Bxd4 {[%clk 0:00:18]}  c5 {[%clk 0:01:07]} 32. Bf2 {[%clk 0:00:13]}  f6 {[%clk 0:00:54]} 33. b4 {[%clk 0:00:11]}  Bxc4 {[%clk 0:00:29]} 34. Nb2 {[%clk 0:00:11]}  Bd5 {[%clk 0:00:21]} 35. bxc5 {[%clk 0:00:10]}  b5 {[%clk 0:00:20]} 36. exf6 {[%clk 0:00:09]}  Bxf6 {[%clk 0:00:20]} 37. Nd3 {[%clk 0:00:09]}  Bc3 {[%clk 0:00:17]} 38. Kf1 {[%clk 0:00:06]}  b4 {[%clk 0:00:16]} 39. Ke2 {[%clk 0:00:06]}  b3 {[%clk 0:00:09]} 40. Kd1 {[%clk 0:00:07]}  Ba5 {[%clk 0:00:06]} 41. Nb2 {[%clk 0:00:05]}  Ke6 {[%clk 0:00:04]} 42. Be1 {[%clk 0:00:04]}  Bxe1 {[%clk 0:00:03]} 43. Kxe1 {[%clk 0:00:05]}  Kd7 {[%clk 0:00:04]} 44. Kd2 {[%clk 0:00:05]}  Kc6 {[%clk 0:00:04]} 45. Kc3 {[%clk 0:00:06]}  Kxc5 {[%clk 0:00:04]} 46. Nd3+ {[%clk 0:00:07]}  Kc6 {[%clk 0:00:03]} 47. Nxf4 {[%clk 0:00:07]}  Bf7 {[%clk 0:00:03]} 48. Nd3 {[%clk 0:00:08]}  Kd6 {[%clk 0:00:03]} 49. Nb2 {[%clk 0:00:08]}  Ke5 {[%clk 0:00:03]} 50. Nd1 {[%clk 0:00:07]}  Kf4 {[%clk 0:00:03]} 51. Nb2 {[%clk 0:00:08]}  Kg3 {[%clk 0:00:03]} 52. f4 {[%clk 0:00:08]}  Kxf4 {[%clk 0:00:03]} 53. g4 {[%clk 0:00:09]}  Kg3 {[%clk 0:00:04]} 54. Nd3 {[%clk 0:00:09]}  Kxh3 {[%clk 0:00:04]} 55. Ne5 {[%clk 0:00:10]}  Be6 {[%clk 0:00:04]} 56. Nf3 {[%clk 0:00:09]}  Kxg4 {[%clk 0:00:04]} 57. Nd4 {[%clk 0:00:10]}  Bd5 {[%clk 0:00:04]} 58. Ne2 {[%clk 0:00:10]}  h5 {[%clk 0:00:04]} 59. Nd4 {[%clk 0:00:10]}  h4 {[%clk 0:00:04]} 60. Ne2 {[%clk 0:00:10]}  h3 {[%clk 0:00:05]} 61. Ng1 {[%clk 0:00:10]}  h2 {[%clk 0:00:05]} 62. Ne2 {[%clk 0:00:11]}  h1=Q {[%clk 0:00:06]} 63. Nd4 {[%clk 0:00:12]}  Qe4 {[%clk 0:00:06]} 64. Nb5 {[%clk 0:00:12]}  Qc4+ {[%clk 0:00:05]} 65. Kb2 {[%clk 0:00:13]}  Qxb5 {[%clk 0:00:05]} 66. Ka1 {[%clk 0:00:14]}  Qa4+ {[%clk 0:00:05]} 67. Kb1 {[%clk 0:00:13]}  Qa2+ {[%clk 0:00:05]} 68. Kc1 {[%clk 0:00:14]}  Qc2# {[%clk 0:00:06]} 0-1


[Site "https://www.chess.com"]